Workbook

Sheet Лист1 (2)
A1: Школа | C1: МБОУ "Средняя общеобразовательная школа №26 с углубленным изучением отдельных предметов" НМР РТ | F1: Согласование: | G1: должность | H1: Директор
A2: Типовое примерное меню приготавливаемых блюд | G2: фамилия | H2: Хайруллина Ч.М.
A3: Возрастная категория | E3: 7-11 лет | G3: дата | H3: 19 | I3: 3 | J3: 2024
H4: день | I4: месяц | J4: год
A5: Неделя | B5: День недели | C5: Прием пищи | D5: Раздел меню | E5: Блюда | F5: Вес блюда, г | G5: Белки | H5: Жиры | I5: Углеводы | J5: Калорийность | K5: № рецептуры | L5: Цена
A6: 1 | B6: 2 | C6: Завтрак | D6: хлеб бел. | E6: Булочка сдобная | F6: 50 | G6: 7.05 | H6: 9.3 | I6: 16.8 | J6: 209 | L6: 39.05
D7: хлеб бел. | E7: Батон нарезной | F7: 50 | G7: 3.75 | H7: 1.45 | I7: 25.7 | J7: 131
D8: гор.блюдо | E8: Каша гречневая молочная вязкая | F8: 200 | G8: 5.92 | H8: 5.59 | I8: 35.42 | J8: 206.46
D9: гор.напиток | E9: Кофейный напиток с молоком | F9: 200 | G9: 3.17 | H9: 2.68 | I9: 9.98 | J9: 60.1
D12: итого | F12: =F6+F7+F8+F9 -> 500 | G12: =SUM(G6:G11) -> 19.89 | H12: =SUM(H6:H11) -> 19.02 | I12: =SUM(I6:I11) -> 87.9 | J12: =SUM(J6:J11) -> 606.56 | L12: =SUM(L6:L11) -> 39.05
A13: =A6 -> 1 | B13: =B6 -> 2 | C13: Обед | D13: 1 блюдо | E13: Рассольник Ленинградский со сметаной | F13: 205 | G13: 5.94 | H13: 6.82 | I13: 12.56 | J13: 93.9 | L13: 80.66
D14: 2 блюдо | E14: Котлеты из индейки с овощами с соусом | F14: 100 | G14: 6.01 | H14: 11.53 | I14: 12.88 | J14: 183.45
D15: гарнир | E15: Каша пшеничная вязкая с маслом сливочным | F15: 153 | G15: 6.7 | H15: 4.38 | I15: 35.99 | J15: 227
D16: напиток | E16: Напиток из изюма и яблок | F16: 200 | G16: 0.2 | H16: 0.1 | I16: 19.82 | J16: 68.12
D17: хлеб бел. | E17: Хлеб пшеничный | F17: 25 | G17: 1.9 | H17: 0.2 | I17: 12.3 | J17: 58.75
D18: хлеб черн. | E18: Хлеб ржаной | F18: 30 | G18: 1.98 | H18: 0.36 | I18: 11.88 | J18: 59.4
D21: итого | F21: =SUM(F13:F20) -> 713 | G21: =SUM(G13:G20) -> 22.73 | H21: =SUM(H13:H20) -> 23.39 | I21: =SUM(I13:I20) -> 105.43 | J21: =SUM(J13:J20) -> 690.62 | L21: =SUM(L13:L20) -> 80.66
A22: =A6 -> 1 | B22: =B6 -> 2 | C22: Итого за день: | F22: 1203 | G22: =G12+G21 -> 42.62 | H22: =H12+H21 -> 42.41 | I22: =I12+I21 -> 193.33 | J22: =J12+J21 -> 1297.18 | L22: =L12+L21 -> 119.71
